fUST/lending_fUST_20241125
["ID","MTS","AMOUNT","RATE_DAILY","PERIOD"]
[343281809,1732539061044,-500.0,0.00025741,2]
[343281810,1732539061054,-500.0,0.00025741,2]
[343281811,1732539061064,-639.4,0.00025741,2]
[343281812,1732539061073,-703.11,0.00025741,2]
[343281813,1732539061083,-500.0,0.00025741,2]
[343281814,1732539061093,-6677.05,0.00025741,2]
[343281815,1732539061102,-1852.14,0.00025741,2]
[343281816,1732539061112,-865.38,0.00025743,2]
[343281817,1732539061121,-966.42,0.00025743,2]
[343281818,1732539061134,-610.64,0.00025743,2]
[343281819,1732539061143,-525.68,0.00025743,2]
[343281820,1732539061153,-592.3,0.00025743,2]
[343281821,1732539061162,-209.58,0.00025743,2]
[343281822,1732539061172,-696.39,0.00025743,2]
[343281823,1732539061182,-677.09,0.00025743,2]
[343281824,1732539061191,-1465.37,0.00025743,2]
[343281825,1732539061201,-823.75,0.00025743,2]
[343281826,1732539061210,-204.97,0.00025743,2]
[343281827,1732539061220,-500.0,0.00025819,2]
[343281828,1732539061229,-500.0,0.00025819,2]
[343281829,1732539061239,-500.0,0.00025819,2]
[343281830,1732539061248,-500.0,0.00025819,2]
[343281831,1732539061257,-500.0,0.00025819,2]
[343281832,1732539061267,-500.0,0.00025819,2]
[343281833,1732539061305,-500.0,0.00025819,2]
[343281834,1732539061315,-500.0,0.00025819,2]
[343281835,1732539061325,-500.0,0.00025819,2]
[343281836,1732539061335,-500.0,0.00025819,2]
[343281837,1732539061344,-500.0,0.00025819,2]
[343281838,1732539061353,-500.0,0.00025819,2]
[343281839,1732539061363,-510.45,0.00025819,2]
[343281840,1732539061373,-500.0,0.00025819,2]
[343281841,1732539061385,-500.0,0.00025819,2]
[343281842,1732539061394,-500.0,0.00025819,2]
[343281843,1732539061404,-396.76693763,0.00025819,2]
[343281844,1732539061414,-500.0,0.00025819,2]
[343281845,1732539061423,-500.0,0.00025819,2]
[343281846,1732539061433,-500.0,0.00025819,2]
[343281847,1732539061442,-500.0,0.00025819,2]
[343281848,1732539061451,-500.0,0.00025819,2]
[343281849,1732539061461,-520.51,0.00025819,2]
[343281850,1732539061471,-500.0,0.00025819,2]
[343281851,1732539061480,-500.0,0.00025819,2]
[343281852,1732539061489,-500.0,0.00025819,2]
[343281853,1732539061499,-500.0,0.00025819,2]
[343281854,1732539061509,-500.0,0.00025819,2]
[343281855,1732539061518,-537.30895969,0.00025819,2]
[343281856,1732539061528,-578.83111077,0.00025819,2]
[343281857,1732539061538,-500.0,0.00025819,2]
[343281858,1732539061547,-500.0,0.00025819,2]
[343281859,1732539061557,-500.0,0.00025819,2]
[343281860,1732539061567,-500.0,0.00025819,2]
[343281861,1732539061577,-500.0,0.00025819,2]
[343281862,1732539061587,-500.0,0.00025819,2]
[343281863,1732539061597,-500.0,0.00025819,2]
[343281864,1732539061606,-500.0,0.00025819,2]
[343281865,1732539061616,-500.0,0.00025819,2]
[343281866,1732539061626,-626.15410385,0.00025819,2]
[343281867,1732539061638,-633.33765158,0.00025819,2]
[343281868,1732539061647,-500.0,0.00025819,2]
[343281869,1732539061656,-500.0,0.00025819,2]
[343281870,1732539061666,-500.0,0.00025819,2]
[343281871,1732539061676,-500.0,0.00025819,2]
[343281872,1732539061685,-500.0,0.00025819,2]
[343281873,1732539061695,-500.0,0.00025819,2]
[343281874,1732539061705,-500.0,0.00025819,2]
[343281875,1732539061715,-500.0,0.00025819,2]
[343281876,1732539061724,-695.02,0.00025819,2]
[343281877,1732539061736,-500.0,0.00025819,2]
[343281878,1732539061746,-500.0,0.00025819,2]
[343281879,1732539061756,-451.55831347,0.00025819,2]
[343281880,1732539061765,-500.0,0.00025819,2]
[343281881,1732539061775,-2813.6,0.00026013,2]
[343281882,1732539061785,-662.99,0.00026013,2]
[343281883,1732539061794,-2005.93,0.00026013,2]
[343281884,1732539061804,-10724.13,0.00026013,2]
[343281885,1732539061814,-686.38,0.00026014,2]
[343281886,1732539061824,-500.0,0.00026014,2]
[343281887,1732539061834,-994.97,0.00026014,2]
[343281888,1732539061844,-756.79,0.00026014,2]
[343281889,1732539061853,-1062.93,0.00026014,2]
[343281890,1732539061863,-546.6,0.00026015,2]
[343281891,1732539061873,-500.0,0.00026015,2]
[343281892,1732539061883,-595.8,0.00026015,2]
[343281893,1732539061893,-512.22,0.00026015,2]
[343281894,1732539061902,-255.2882395,0.00026015,2]
[343281895,1732539061912,-500.0,0.00026015,2]
[343281896,1732539061922,-703.11,0.00026015,2]
[343281897,1732539061932,-263.78,0.00026015,2]
[343281898,1732539061942,-6677.05,0.00026015,2]
[343281899,1732539061952,-1852.14,0.00026015,2]
[343281900,1732539061961,-865.38,0.00026017,2]
[343281901,1732539061971,-966.42,0.00026017,2]
[343281902,1732539061980,-610.64,0.00026017,2]
[343281903,1732539061990,-525.68,0.00026017,2]
[343281904,1732539062000,-592.3,0.00026017,2]
[343281905,1732539062010,-696.39,0.00026017,2]
[343281906,1732539062020,-677.09,0.00026017,2]
[343281907,1732539062029,-1465.37,0.00026017,2]
[343281908,1732539062039,-823.75,0.00026017,2]
[343281909,1732539062048,-500.0,0.00026069,2]
[343281910,1732539062057,-500.0,0.00026093,2]
[343281911,1732539062066,-509.26656454,0.00026093,2]
[343281912,1732539062076,-545.0,0.00026093,2]
[343281913,1732539062085,-500.0,0.00026093,2]
[343281914,1732539062094,-500.0,0.00026093,2]
[343281915,1732539062103,-500.0,0.00026093,2]
[343281916,1732539062112,-500.0,0.00026093,2]
[343281917,1732539062121,-500.0,0.00026093,2]
[343281918,1732539062131,-500.0,0.00026093,2]
[343281919,1732539062140,-500.0,0.00026093,2]
[343281920,1732539062149,-500.0,0.00026093,2]
[343281921,1732539062159,-500.0,0.00026093,2]
[343281922,1732539062168,-510.45,0.00026093,2]
[343281923,1732539062176,-500.0,0.00026093,2]
[343281924,1732539062185,-500.0,0.00026093,2]
[343281925,1732539062195,-500.0,0.00026093,2]
[343281926,1732539062204,-500.0,0.00026093,2]
[343281927,1732539062213,-500.0,0.00026093,2]
[343281928,1732539062223,-500.0,0.00026093,2]
[343281929,1732539062233,-500.0,0.00026093,2]
[343281930,1732539062242,-500.0,0.00026093,2]
[343281931,1732539062251,-520.51,0.00026093,2]
[343281932,1732539062261,-500.0,0.00026093,2]
[343281933,1732539062270,-500.0,0.00026093,2]
[343281934,1732539062279,-500.0,0.00026093,2]
[343281935,1732539062288,-500.0,0.00026093,2]
[343281936,1732539062298,-500.0,0.00026093,2]
[343281937,1732539062307,-500.0,0.00026093,2]
[343281938,1732539062316,-500.0,0.00026093,2]
[343281939,1732539062326,-500.0,0.00026093,2]
[343281940,1732539062335,-500.0,0.00026093,2]
[343281941,1732539062344,-500.0,0.00026093,2]
[343281942,1732539062353,-500.0,0.00026093,2]
[343281943,1732539062362,-500.0,0.00026093,2]
[343281944,1732539062372,-500.0,0.00026093,2]
[343281945,1732539062384,-500.0,0.00026093,2]
[343281946,1732539062394,-500.0,0.00026093,2]
[343281947,1732539062404,-500.0,0.00026093,2]
[343281948,1732539062413,-500.0,0.00026093,2]
[343281949,1732539062423,-509.55557685,0.00026093,2]
[343281950,1732539062432,-500.0,0.00026093,2]
[343281951,1732539062442,-500.0,0.00026093,2]
[343281952,1732539062451,-500.0,0.00026093,2]
[343281953,1732539062461,-500.0,0.00026093,2]
[343281954,1732539062471,-695.02,0.00026093,2]
[343281955,1732539062480,-500.0,0.00026093,2]
[343281956,1732539062490,-500.0,0.00026093,2]
[343281957,1732539062499,-500.0,0.00026093,2]
[343281958,1732539062508,-2813.6,0.00026287,2]
[343281959,1732539062518,-662.99,0.00026287,2]
[343281960,1732539062528,-2005.93,0.00026287,2]
[343281961,1732539062537,-10724.13,0.00026287,2]
[343281962,1732539062547,-686.38,0.00026288,2]
[343281963,1732539062556,-500.0,0.00026288,2]
[343281964,1732539062566,-994.97,0.00026288,2]
[343281965,1732539062576,-756.79,0.00026288,2]
[343281966,1732539062586,-1062.93,0.00026288,2]
[343281967,1732539062595,-546.6,0.00026289,2]
[343281968,1732539062605,-570.88,0.00026289,2]
[343281969,1732539062615,-595.8,0.00026289,2]
[343281970,1732539062624,-512.22,0.00026289,2]
[343281971,1732539062638,-285.34,0.00026289,2]
[343281972,1732539062647,-703.11,0.00026289,2]
[343281973,1732539062657,-6677.05,0.00026289,2]
[343281974,1732539062666,-1852.14,0.00026289,2]
[343281975,1732539062675,-865.42,0.00026291,2]
[343281976,1732539062685,-966.43,0.00026291,2]
[343281977,1732539062694,-610.81,0.00026291,2]
[343281978,1732539062703,-525.83,0.00026291,2]
[343281979,1732539062714,-592.42226221,0.00026291,2]
[343281980,1732539062795,-696.41,0.00026291,2]
[343281981,1732539062819,-677.2,0.00026291,2]
[343281982,1732539062830,-1465.54,0.00026291,2]
[343281983,1732539062841,-823.75,0.00026291,2]
[343281984,1732539062851,-500.0,0.00026367,2]
[343281985,1732539062861,-500.0,0.00026367,2]
[343281986,1732539062870,-500.0,0.00026367,2]
[343281987,1732539062884,-500.0,0.00026367,2]
[343281988,1732539062894,-500.0,0.00026367,2]
[343281989,1732539062904,-500.0,0.00026367,2]
[343281990,1732539062914,-500.0,0.00026367,2]
[343281991,1732539062924,-500.0,0.00026367,2]
[343281992,1732539062934,-500.0,0.00026367,2]
[343281993,1732539062944,-500.0,0.00026367,2]
[343281994,1732539062954,-510.45,0.00026367,2]
[343281995,1732539062963,-500.0,0.00026367,2]
[343281996,1732539062973,-544.11937671,0.00026367,2]
[343281997,1732539062983,-500.0,0.00026367,2]
[343281998,1732539062992,-500.0,0.00026367,2]
[343281999,1732539063003,-500.0,0.00026367,2]
[343282000,1732539063012,-500.0,0.00026367,2]
[343282001,1732539063022,-500.0,0.00026367,2]
[343282002,1732539063033,-500.0,0.00026367,2]
[343282003,1732539063042,-520.51,0.00026367,2]
[343282004,1732539063052,-500.0,0.00026367,2]
[343282005,1732539063062,-500.0,0.00026367,2]
[343282006,1732539063071,-183.40323149,0.00026367,2]
[343282007,1732539063081,-500.0,0.00026367,2]
[343282008,1732539063091,-527.45027098,0.00026367,2]
[343282009,1732539063101,-500.0,0.00026367,2]
[343282010,1732539063111,-500.0,0.00026367,2]
[343282011,1732539063121,-500.0,0.00026367,2]
[343282012,1732539063134,-500.0,0.00026367,2]
[343282013,1732539063144,-500.0,0.00026367,2]
[343282014,1732539063154,-500.0,0.00026367,2]
[343282015,1732539063165,-500.0,0.00026367,2]
[343282016,1732539063174,-279.28365912,0.00026367,2]
[343282017,1732539063193,-500.0,0.00026367,2]
[343282018,1732539063202,-500.0,0.00026367,2]
[343282019,1732539063211,-500.0,0.00026367,2]
[343282020,1732539063220,-500.0,0.00026367,2]
[343282021,1732539063228,-500.0,0.00026367,2]
[343282022,1732539063239,-500.0,0.00026367,2]
[343282023,1732539063248,-500.0,0.00026367,2]
[343282024,1732539063257,-695.02,0.00026367,2]
[343282025,1732539063267,-500.0,0.00026367,2]
[343282026,1732539063277,-500.0,0.00026367,2]
[343282027,1732539063287,-500.0,0.00026367,2]
[343282028,1732539063296,-2813.78,0.00026561,2]
[343282029,1732539063306,-663.02,0.00026561,2]
[343282030,1732539063316,-2005.95,0.00026561,2]
[343282031,1732539063325,-10724.208,0.00026561,2]
[343282032,1732539063335,-686.42,0.00026562,2]
[343282033,1732539063345,-358.82,0.00026562,2]
[343282034,1732539063354,-995.12511618,0.00026562,2]
[343282035,1732539063367,-757.01,0.00026562,2]
[343282036,1732539063377,-1063.11,0.00026562,2]
[343282037,1732539063391,-546.8,0.00026563,2]
[343282038,1732539063400,-595.95,0.00026563,2]
[343282039,1732539063410,-512.37,0.00026563,2]
[343282040,1732539063420,-703.18,0.00026563,2]
[343282041,1732539063429,-6677.05,0.00026563,2]
[343282042,1732539063439,-1852.37,0.00026563,2]
[343282043,1732539063448,-164.67272873,0.00026591,2]
[343282044,1732539063458,-500.0,0.00026631,2]
[343282045,1732539063467,-500.0,0.00026631,2]
[343282046,1732539063476,-500.0,0.00026631,2]
[343282047,1732539063486,-500.0,0.00026631,2]
[343282048,1732539063496,-500.0,0.00026631,2]
[343282049,1732539063505,-500.0,0.00026631,2]
[343282050,1732539063515,-500.0,0.00026631,2]
[343282051,1732539063524,-580.25733749,0.00026631,2]
[343282052,1732539063534,-500.0,0.00026631,2]
[343282053,1732539063544,-500.0,0.00026631,2]
[343282054,1732539063554,-500.0,0.00026631,2]
[343282055,1732539063564,-500.0,0.00026631,2]
[343282056,1732539063573,-500.0,0.00026631,2]
[343282057,1732539063583,-500.0,0.00026631,2]
[343282058,1732539063593,-500.0,0.00026631,2]
[343282059,1732539063603,-503.05940868,0.00026631,2]
[343282060,1732539063612,-500.0,0.00026631,2]
[343282061,1732539063623,-503.94901075,0.00026631,2]
[343282062,1732539063636,-500.0,0.00026631,2]
[343282063,1732539063646,-500.0,0.00026631,2]
[343282064,1732539063656,-521.50045765,0.00026631,2]
[343282065,1732539063666,-500.0,0.00026632,2]
[343282066,1732539063676,-500.0,0.00026641,2]
[343282067,1732539063686,-500.0,0.00026641,2]
[343282068,1732539063696,-171.8595185,0.00026641,2]
[343282069,1732539063706,-500.0,0.00026641,2]
[343282070,1732539063716,-500.0,0.00026641,2]
[343282071,1732539063725,-427.85999546,0.00026641,2]
[343282072,1732539063738,-500.0,0.00026641,2]
[343282073,1732539063748,-500.0,0.00026641,2]
[343282074,1732539063758,-338.27002018,0.00026641,2]
[343282075,1732539063768,-510.45,0.00026641,2]
[343282076,1732539063778,-500.0,0.00026641,2]
[343282077,1732539063789,-500.0,0.00026641,2]
[343282078,1732539063799,-520.51,0.00026641,2]
[343282079,1732539063809,-500.0,0.00026641,2]
[343282080,1732539063820,-500.0,0.00026641,2]
[343282081,1732539063830,-500.0,0.00026641,2]
[343282082,1732539063841,-649.18554166,0.00026641,2]
[343282083,1732539063850,-243.05764432,0.00026641,2]
[343282084,1732539063860,-500.0,0.00026641,2]
[343282085,1732539063870,-500.0,0.00026641,2]
[343282086,1732539063880,-500.0,0.00026641,2]
[343282087,1732539063894,-500.0,0.00026641,2]
[343282088,1732539063904,-500.0,0.00026641,2]
[343282089,1732539063914,-500.0,0.00026641,2]
[343282090,1732539063923,-500.0,0.00026641,2]
[343282091,1732539063934,-500.0,0.00026641,2]
[343282092,1732539063943,-500.0,0.00026641,2]
[343282093,1732539063954,-695.02,0.00026641,2]
[343282094,1732539063964,-500.0,0.00026641,2]
[343282095,1732539063973,-500.0,0.00026641,2]
[343282096,1732539063984,-500.0,0.00026641,2]
[343282097,1732539063993,-500.0,0.00026905,2]
[343282098,1732539064003,-500.0,0.00026905,2]
[343282099,1732539064013,-500.0,0.00026905,2]
[343282100,1732539064022,-500.0,0.00026905,2]
[343282101,1732539064032,-500.0,0.00026905,2]
[343282102,1732539064042,-531.11911408,0.00026905,2]
[343282103,1732539064052,-500.0,0.00026905,2]
[343282104,1732539064061,-500.0,0.00026905,2]
[343282105,1732539064070,-500.0,0.00026905,2]
[343282106,1732539064079,-647.17076408,0.00026905,2]
[343282107,1732539064088,-500.0,0.00026905,2]
[343282108,1732539064099,-500.0,0.00026905,2]
[343282109,1732539064109,-455.01368085,0.00026905,2]
[343282110,1732539064118,-501.95594739,0.00026905,2]
[343282111,1732539064127,-500.0,0.00026905,2]
[343282112,1732539064141,-500.0,0.00026905,2]
[343282113,1732539064150,-500.0,0.00026905,2]
[343282114,1732539064159,-589.2985322,0.00026906,2]
[343282115,1732539064169,-500.0,0.00026915,2]
[343282116,1732539064179,-500.0,0.00026915,2]
[343282117,1732539064188,-500.0,0.00026915,2]
[343282118,1732539064198,-500.0,0.00026915,2]
[343282119,1732539064207,-500.0,0.00026915,2]
[343282120,1732539064217,-500.0,0.00026915,2]
[343282121,1732539064226,-510.45,0.00026915,2]
[343282122,1732539064236,-619.46748393,0.00026915,2]
[343282123,1732539064246,-520.51,0.00026915,2]
[343282124,1732539064256,-500.0,0.00026915,2]
[343282125,1732539064266,-500.0,0.00026915,2]
[343282126,1732539064275,-151.78912953,0.00026915,2]
[343282127,1732539064285,-500.0,0.00026915,2]
[343282128,1732539064294,-500.0,0.00026915,2]
[343282129,1732539064303,-500.0,0.00026915,2]
[343282130,1732539064313,-523.94361315,0.00026915,2]
[343282131,1732539064323,-230.5169804,0.00026915,2]
[343282132,1732539064333,-574.59320516,0.00026915,2]
[343282133,1732539064343,-500.0,0.00026915,2]
[343282134,1732539064353,-500.0,0.00026915,2]
[343282135,1732539064363,-695.02,0.00026915,2]
[343282136,1732539064373,-500.0,0.00026915,2]
[343282137,1732539064385,-500.0,0.00026915,2]
[343282138,1732539064394,-500.0,0.00026915,2]
[343282139,1732539064404,-500.0,0.00027179,2]
[343282140,1732539064414,-500.0,0.00027179,2]
[343282141,1732539064423,-500.0,0.00027179,2]
[343282142,1732539064433,-500.0,0.00027179,2]
[343282143,1732539064442,-605.26747893,0.00027179,2]
[343282144,1732539064452,-500.0,0.00027179,2]
[343282145,1732539064461,-500.0,0.00027179,2]
[343282146,1732539064471,-502.65638944,0.00027179,2]
[343282147,1732539064481,-500.0,0.00027179,2]
[343282148,1732539064490,-372.37437637,0.00027179,2]
[343282149,1732539064499,-586.47180697,0.00027179,2]
[343282150,1732539064509,-500.0,0.00027189,2]
[343282151,1732539064518,-500.0,0.00027189,2]
[343282152,1732539064527,-500.0,0.00027189,2]
[343282153,1732539064615,-500.0,0.00027189,2]
[343282154,1732539064625,-510.45,0.00027189,2]
[343282155,1732539064637,-520.51,0.00027189,2]
[343282156,1732539064648,-500.0,0.00027189,2]
[343282157,1732539064657,-500.0,0.00027189,2]
[343282158,1732539064667,-500.0,0.00027189,2]
[343282159,1732539064677,-500.0,0.00027189,2]
[343282160,1732539064687,-500.0,0.00027189,2]
[343282161,1732539064697,-500.0,0.00027189,2]
[343282162,1732539064706,-500.0,0.00027189,2]
[343282163,1732539064716,-695.02,0.00027189,2]
[343282164,1732539064726,-500.0,0.00027189,2]
[343282165,1732539064736,-500.0,0.00027189,2]
[343282166,1732539064748,-500.0,0.00027189,2]
[343282167,1732539064759,-506.28038012,0.00027453,2]
[343282168,1732539064769,-446.40880904,0.00027453,2]
[343282169,1732539064778,-530.77322033,0.00027453,2]
[343282170,1732539064789,-500.0,0.00027453,2]
[343282171,1732539064799,-500.0,0.00027453,2]
[343282172,1732539064809,-500.0,0.00027453,2]
[343282173,1732539064822,-500.0,0.00027453,2]
[343282174,1732539064832,-500.0,0.00027463,2]
[343282175,1732539064842,-500.0,0.00027463,2]
[343282176,1732539064851,-510.45,0.00027463,2]
[343282177,1732539064861,-520.51,0.00027463,2]
[343282178,1732539064871,-262.56,0.00027463,2]
[343282179,1732539064880,-500.0,0.00027463,2]
[343282180,1732539064891,-528.70574694,0.00027463,2]
[343282181,1732539064901,-523.9758747,0.00027463,2]
[343282182,1732539064910,-286.70049076,0.00027463,2]
[343282183,1732539064919,-500.0,0.00027463,2]
[343282184,1732539064930,-500.0,0.00027463,2]
[343282185,1732539064939,-695.02,0.00027463,2]
[343282186,1732539064949,-500.0,0.00027463,2]
[343282187,1732539064959,-500.0,0.00027463,2]
[343282188,1732539064968,-500.0,0.00027463,2]
[343282189,1732539064979,-164.67272873,0.00027481,2]
[343282190,1732539064988,-500.0,0.00027727,2]
[343282191,1732539064998,-500.0,0.00027727,2]
[343282192,1732539065008,-500.0,0.00027727,2]
[343282193,1732539065017,-500.0,0.00027727,2]
[343282194,1732539065026,-500.0,0.00027737,2]
[343282195,1732539065035,-500.0,0.00027737,2]
[343282196,1732539065047,-510.45,0.00027737,2]
[343282197,1732539065056,-520.51,0.00027737,2]
[343282198,1732539065065,-500.0,0.00027737,2]
[343282199,1732539065075,-500.0,0.00027737,2]
[343282200,1732539065084,-500.0,0.00027737,2]
[343282201,1732539065093,-695.02,0.00027737,2]
[343282202,1732539065103,-500.0,0.00027737,2]
[343282203,1732539065112,-494.72,0.00027737,2]
[343282204,1732539065120,-500.0,0.00028001,2]
[343282205,1732539065130,-500.0,0.00028001,2]
[343282206,1732539065141,-500.0,0.00028001,2]
[343282207,1732539065150,-500.0,0.00028011,2]
[343282208,1732539065159,-500.0,0.00028011,2]
[343282209,1732539065168,-510.45,0.00028011,2]
[343282210,1732539065177,-520.51,0.00028011,2]
[343282211,1732539065186,-500.0,0.00028011,2]
[343282212,1732539065196,-309.96,0.00028011,2]
[343282213,1732539065205,-695.02,0.00028011,2]
[343282214,1732539065214,-500.0,0.00028011,2]
[343282215,1732539065222,-541.12643118,0.00028275,2]
[343282216,1732539065232,-500.0,0.00028275,2]
[343282217,1732539065241,-468.36529264,0.00028275,2]
[343282218,1732539065250,-475.54,0.00028285,2]
[343282219,1732539065260,-500.0,0.00028285,2]
[343282220,1732539065269,-510.45,0.00028285,2]
[343282221,1732539065279,-520.51,0.00028285,2]
[343282222,1732539065288,-500.0,0.00028285,2]
[343282223,1732539065297,-695.02,0.00028285,2]
[343282224,1732539065306,-500.0,0.00028285,2]
[343282225,1732539065315,-164.67272873,0.0002837,2]
[343282226,1732539065325,-749.79,0.000285,2]
[343282227,1732539065334,-20939.21,0.000285,2]
[343282228,1732539065343,-500.0,0.00028549,2]
[343282229,1732539065353,-500.0,0.00028559,2]
[343282230,1732539065362,-510.45,0.00028559,2]
[343282231,1732539065371,-520.51,0.00028559,2]
[343282232,1732539065382,-500.0,0.00028559,2]
[343282233,1732539065392,-695.02,0.00028559,2]
[343282234,1732539065401,-500.0,0.00028559,2]
[343282235,1732539065410,-500.0,0.00028823,2]
[343282236,1732539065420,-500.0,0.00028833,2]
[343282237,1732539065429,-510.45,0.00028833,2]
[343282238,1732539065439,-520.51,0.00028833,2]
[343282239,1732539065450,-500.0,0.00028833,2]
[343282240,1732539065459,-695.02,0.00028833,2]
[343282241,1732539065469,-500.0,0.00028833,2]
[343282242,1732539065478,-153.0,0.00028922,30]
[343282243,1732539065487,-153.0,0.00028935,30]
[343282244,1732539065497,-151.0,0.00028968,7]
[343282245,1732539065506,-151.0,0.00028977,2]
[343282246,1732539065516,-531.0,0.00029004,2]
[343282247,1732539065525,-1105.0,0.00029004,2]
[343282248,1732539065534,-2379.0,0.00029004,2]
[343282249,1732539065543,-294.8,0.00029107,2]
[343282250,1732539065553,-510.45,0.00029107,2]
[343282251,1732539065562,-520.51,0.00029107,2]
[343282252,1732539065572,-500.0,0.00029107,2]
[343282253,1732539065582,-695.02,0.00029107,2]
[343282254,1732539065591,-500.0,0.00029107,2]
[343282255,1732539065600,-186.0,0.000292,2]
[343282256,1732539065610,-330.0,0.00029219,2]
[343282257,1732539065619,-568.11139444,0.00029252,11]
[343282258,1732539065628,-501.3330157,0.00029252,11]
[343282259,1732539065640,-164.67272873,0.00029259,2]
[343282260,1732539065649,-153.0,0.00029305,30]
[343282261,1732539065658,-153.0,0.00029305,30]
[343282262,1732539065667,-439.1419278,0.00029305,30]
[343282263,1732539065677,-304.267258,0.00029305,30]
[343282264,1732539065688,-2214.00992284,0.00029318,2]
[343282265,1732539065698,-153.0,0.00029318,30]
[343282266,1732539065708,-153.0,0.00029318,30]
[343282267,1732539065717,-153.0,0.00029318,30]
[343282268,1732539065727,-153.0,0.00029318,30]
[343282269,1732539065739,-153.0,0.00029318,30]
[343282270,1732539065749,-153.0,0.00029318,30]
[343282271,1732539065758,-153.0,0.00029318,30]
[343282272,1732539065767,-153.0,0.00029318,30]
[343282273,1732539065777,-153.0,0.00029318,30]
[343282274,1732539065787,-153.0,0.00029318,30]
[343282275,1732539065796,-153.0,0.00029318,30]
[343282276,1732539065805,-306.0,0.00029318,30]
[343282277,1732539065816,-153.0,0.00029318,30]
[343282278,1732539065825,-153.0,0.00029318,30]
[343282279,1732539065835,-153.0,0.00029318,30]
[343282280,1732539065844,-153.0,0.00029318,30]
[343282281,1732539065854,-153.0,0.00029318,30]
[343282282,1732539065864,-169.8330963,0.00029318,30]
[343282283,1732539065873,-310.5783096,0.00029318,30]
[343282284,1732539065885,-451.7842529,0.00029318,30]
[343282285,1732539065895,-153.0,0.00029318,30]
[343282286,1732539065907,-212.7413024,0.00029318,30]
[343282287,1732539065917,-212.7413024,0.00029318,30]
[343282288,1732539065927,-153.0,0.00029318,30]
[343282289,1732539065936,-212.7413024,0.00029318,30]
[343282290,1732539065945,-153.0,0.00029318,30]
[343282291,1732539065954,-312.4130375,0.00029318,30]
[343282292,1732539065964,-212.7413024,0.00029318,30]
[343282293,1732539065974,-153.0,0.00029318,30]
[343282294,1732539065985,-153.0,0.00029318,30]
[343282295,1732539065994,-304.7429954,0.00029318,30]
[343282296,1732539066004,-212.7413024,0.00029318,30]
[343282297,1732539066014,-151.0,0.00029319,15]
[343282298,1732539066025,-500.0,0.00029319,10]
[343282299,1732539066035,-500.0,0.00029319,10]
[343282300,1732539066045,-500.0,0.00029319,10]
[343282301,1732539066054,-500.0,0.00029319,10]
[343282302,1732539066064,-162.991482,0.00029349,2]
[343282303,1732539066073,-2916806.731039,0.00029357,10]
[343282304,1732539066322,-500.0,0.00020809,2]
[343282305,1732539066331,-500.0,0.00021083,2]
[343282306,1732539066342,-500.0,0.00021357,2]
[343282307,1732539066352,-226.42569013,0.00021631,2]
[343282308,1732539066364,-273.57430987,0.00021631,2]